{"text_format":"1","workbook":"xlsx","n_sheets":3,"sheets":["Исходные данные","Расчет уставок","Результаты расчета"],"not_rendered":{"charts":1,"images":167,"macros":1,"external_links":0,"defined_names":4,"comments":0,"pivot_tables":0},"unopened":[],"bounds":{"document_bytes":16777216,"sheet_cells":100000,"rows_first":2000,"rows_last":500,"rows_between":2000,"halvings":0,"cell_chars":16384,"cell_head_chars":4096},"cells_cut":0,"cells_raw":0,"read":"whole","date_system":"1900"}

{"sheet":"Исходные данные","index":0,"n_rows":78,"n_cols":17,"rows_kept":78,"cut":false,"hidden":false,"merged":[[52,0,52,4],[11,10,11,12],[11,13,11,15],[42,0,42,4],[46,0,46,4],[49,0,49,4],[2,0,2,15],[1,0,1,15],[0,0,0,15],[9,10,9,11],[9,13,9,15]]}
["НПП \"Микропроцессорные технологии\""]
["Пирогов М.Г, Илюхин Е.В., Петелин С.Д."]
["2018 год"]
[]
["Исходные данные для расчета уставок защит трехобмоточного трансформатора Алтей-ОЗТ"]
["Заполнить белые ячейки, выделенные зеленой рамкой -"]
[]
[null,null,null,null,null,null,null,null,null,null,null,null,null,null,"ВН-СН","ВН-НН","Y/Y/∆"]
[null,null,null,null,null,null,null,null,null,null,"Параметры трансформатора",null,null,null,{"$f":"IF(OR(N10=Q9,N10=Q10),1,SQRT(3)/2)","v":0.8660254037844386},{"$f":"IF(N10=Q11,SQRT(3)/2,1)","v":1},"Y/∆/∆"]
[null,null,null,null,null,null,null,null,null,null,"Схема соединения",null,null,"Y/Y/∆",null,null,"∆/∆/∆"]
[null,null,null,null,null,null,null,null,null,null,null,null,null,null,null,null,"Y/Y/Y"]
[null,null,null,null,null,null,null,null,null,null,"Вид трансформатора",null,null,"Маслонаполненный",null,null,"Маслонаполненный"]
[null,null,null,null,null,null,null,null,null,null,null,null,null,null,null,null,"Сухой"]
[null,null,null,null,null,null,null,null,null,null,"Номинальная мощность трансформатора, кВА"]
[null,null,null,null,null,null,null,null,null,null,null,40000]
[null,null,null,null,null,null,null,null,null,null,null,40000]
[null,null,null,null,null,null,null,null,null,null,null,40000]
[null,null,null,null,null,null,null,null,null,null,"Номинальные напряжения сторон, кВ"]
[null,null,null,null,null,null,null,null,null,null,null,115]
[null,null,null,null,null,null,null,null,null,null,null,38.5]
[null,null,null,null,null,null,null,null,null,null,null,6.6]
[null,null,null,null,null,null,null,null,null,null,"Номинальные коэфициенты трансформации трансформатора"]
[null,null,null,null,null,null,null,null,null,null,null,{"$f":"L19/L20","v":2.9870129870129869}]
[null,null,null,null,null,null,null,null,null,null,null,{"$f":"L19/L21","v":17.424242424242426}]
[null,null,null,null,null,null,null,null,null,null,"Параметры регулирования напряжения"]
[null,null,null,null,null,null,null,null,null,null,null,1.78,"- шаг регулирования напряжения устройством РПН, %"]
[null,null,null,null,null,null,null,null,null,null,null,9,"- количество ступеней, используемых для регулирования напряжения в большую сторону"]
[null,null,null,null,null,null,null,null,null,null,null,9,"- количество ступеней, используемых для регулирования напряжения в меньшую сторону"]
[]
[null,null,null,null,null,null,null,null,null,null,"Параметры ТТ"]
[]
[null,null,null,null,null,null,null,null,null,null,"Коэффициент трансформации ТТ стороны ВН"]
[null,null,null,null,null,null,null,null,null,null,null,"=",1000,"/",5,"=",{"$f":"M33/O33","v":200}]
[null,null,null,null,null,null,null,null,null,null,"Коэффициент трансформации ТТ стороны СН"]
[null,null,null,null,null,null,null,null,null,null,null,"=",1000,"/",5,"=",{"$f":"M35/O35","v":200}]
[null,null,null,null,null,null,null,null,null,null,"Коэффициент трансформации ТТ стороны НН"]
[null,null,null,null,null,null,null,null,null,null,null,"=",2000,"/",5,"=",{"$f":"M37/O37","v":400}]
[]
[null,null,null,null,null,null,null,null,null,null,"Режимы работы"]
[]
[null,null,null,null,null,null,null,null,null,null,"Максимальная кратность реальной длительно возможной перегрузки трансформатора (относительно номинального тока трансформатора)"]
["Тип нагрузки на стороне НН",null,null,null,null,null,null,null,null,null,null,1.4]
["Промышленная (Uдвиг<=1000 В)",null,null,null,null,"Промышленная (Uдвиг<=1000 В)",{"$f":"IF(A43=F43,5,IF(A43=F44,2,2.5))","v":5},null,null,null,"Максимальная кратность тока нагрузки своей секции шин стороны СН (относительно номинального тока трансформатора)"]
[null,null,null,null,null,"Сельская общего назначения",null,null,null,null,null,0.7]
[null,null,null,null,null,"Городская общего назначения",null,null,null,null,"Первичное среднее номинальное напряжение сети на стороне СН, В"]
["Роль МТЗ",null,null,null,null,null,null,null,null,null,null,35000]
["Резервная",null,null,null,null,"Резервная",{"$f":"IF(A47=\"Резервная\",1.2,1.5)","v":1.2},null,null,null,"Максимальная кратность тока нагрузки своей секции шин стороны НН (относительно номинального тока трансформатора)"]
[null,null,null,null,null,"Основная",null,null,null,null,null,0.7]
["Нагрузка",null,null,null,null,null,"Введите кнб",null,null,null,"Первичное среднее номинальное напряжение сети на стороне НН, В"]
["Симметричная",null,null,null,null,null,0.4,"Симметричная",null,null,null,6000]
[null,null,null,null,null,null,null,"Несимметричная"]
[null,null,null,null,null,null,null,null,null,null,"Токи короткого замыкания, приведенные к стороне ВН"]
[]
[null,null,null,null,null,"Основная",null,null,null,null,"В точке К1 - на шинах ВН"]
[null,null,null,null,null,null,null,null,null,null,null,2379.4,"- максимальный ток трехфазного КЗ, А"]
[null,null,null,null,null,null,null,null,null,null,null,2179.5,"- минимальный ток трехфазного КЗ, А"]
[]
[null,null,null,null,null,null,null,null,null,null,"В точке К2 - на шинах СН"]
[null,null,null,null,null,null,null,null,null,null,null,1317.3,"- максимальный ток трехфазного КЗ, А"]
[null,null,null,null,null,null,null,null,null,null,null,1002.5,"- минимальный ток трехфазного КЗ, А"]
[]
[null,null,null,null,null,null,null,null,null,{"$f":"IF(L60<L64,O9,P9)","v":1},"В точке К3 - на шинах НН"]
[null,null,null,null,null,null,null,null,null,null,null,955.9,"- максимальный ток трехфазного КЗ, А"]
[null,null,null,null,null,null,null,null,null,null,null,712.6,"- минимальный ток трехфазного КЗ, А"]
[]
[null,null,null,null,null,null,null,null,null,null,"В точке К4 - в конце зоны резервирования на стороне СН (минимальный ток КЗ)"]
[null,null,null,null,null,null,null,null,null,null,null,753,"- минимальный ток трехфазного КЗ, А"]
[]
[null,null,null,null,null,null,null,null,null,null,"В точке К5 - в конце зоны резервирования на стороне НН (минимальный ток КЗ)"]
[null,null,null,null,null,null,null,null,null,null,null,610,"- минимальный ток трехфазного КЗ, А"]
[]
[null,null,null,null,null,null,null,null,null,null,"Уставки защит с которыми производится согласование"]
[]
[null,null,null,null,null,null,null,null,null,null,null,208.9,"- значение уставки срабатывания МТЗ на присоединении СВ СН, приведенное к стороне ВН, А"]
[null,null,null,null,null,null,null,null,null,null,null,2,"- значение уставки задержки срабатывания МТЗ на присоединении СВ СН, с"]
[]
[null,null,null,null,null,null,null,null,null,null,null,155,"- значение уставки срабатывания МТЗ на присоединении СВ НН, приведенное к стороне ВН, А"]
[null,null,null,null,null,null,null,null,null,null,null,2,"- значение уставки задержки срабатывания МТЗ на присоединении СВ НН, с"]

{"sheet":"Расчет уставок","index":1,"n_rows":108,"n_cols":10,"rows_kept":108,"cut":false,"hidden":false,"merged":[[16,8,17,8],[16,9,17,9],[23,0,25,0],[23,1,25,1],[23,2,25,2],[23,4,25,4],[23,3,25,3],[23,5,25,5],[23,6,25,6],[23,7,25,7],[18,7,19,7],[18,0,19,0],[18,2,19,2],[18,3,19,3],[18,4,19,4],[18,5,19,5],[18,6,19,6],[27,7,29,7],[0,3,0,4],[1,0,1,7],[11,0,11,7],[16,0,17,0],[16,2,17,2],[16,3,17,3],[16,4,17,4],[16,5,17,5],[16,6,17,6],[16,7,17,7],[13,0,15,0],[13,1,15,1],[13,2,15,2],[13,3,15,3],[13,4,15,4],[13,5,15,5],[13,6,15,6],[13,7,15,7],[27,0,29,0],[27,1,29,1],[27,2,29,2],[27,4,29,4],[27,3,29,3],[27,5,29,5],[27,6,29,6],[65,2,68,2],[65,3,68,3],[65,4,68,4],[65,5,68,5],[65,1,68,1],[101,1,103,1],[101,2,103,2],[101,4,103,4],[101,3,103,3],[101,5,103,5],[101,6,103,6],[101,7,103,7],[42,0,42,7],[48,0,48,7],[63,0,63,7],[78,0,78,7],[89,0,89,7],[50,0,53,0],[50,1,53,1],[50,2,53,2],[50,3,53,3],[50,4,53,4],[50,5,53,5],[50,6,53,6],[50,7,53,7],[65,0,68,0],[65,6,68,6],[65,7,68,7],[79,3,82,3],[79,4,82,4],[79,5,82,5],[93,0,93,7],[79,0,82,0],[79,1,82,1],[79,2,82,2],[99,0,99,7],[79,6,82,6],[79,7,82,7],[105,5,107,5],[105,6,107,6],[105,7,107,7],[90,0,91,0],[90,1,91,1],[90,2,91,2],[90,3,91,3],[90,4,91,4],[90,5,91,5],[90,6,91,6],[90,7,91,7],[105,0,107,0],[105,1,107,1],[105,2,107,2],[105,3,107,3],[105,4,107,4],[101,0,103,0]]}
["№ п.п.","Величина","Обозначение","Формула",null,"Расчет","Примечание","Значение для ввода в устройство"]
["1.     Выбор диапазона измерений токов"]
["1.1           ","Номинальный вторичный ток стороны ВН трансформатора, А",null,"7.1",null,{"$f":"'Исходные данные'!L15/(3^0.5*'Исходные данные'!L19*'Исходные данные'!Q33)","v":1.0040874246776099},"-","-"]
["1.2           ","Номинальный ток диапазона измерений токов стороны ВН, А",null,"-","-",{"$f":"IF(F3>1,IF(F3<=20,5,\"Ошибка: ток вне диапазона 1-20. Проверьте исходные данные\"),1)","v":5},"В соответствии с п. 7.2.3",{"$f":"F4","v":5}]
["1.3           ","Номинальный вторичный ток стороны СН трансформатора, А",null,"7.2",null,{"$f":"'Исходные данные'!L16/(3^0.5*'Исходные данные'!L20*'Исходные данные'!Q35)","v":2.9992221776084458},"-","-"]
["1.4           ","Номинальный ток диапазона измерений токов стороны СН, А",null,"-","-",{"$f":"IF(F5>1,IF(F5<=20,5,\"Ошибка: ток вне диапазона 1-20. Проверьте исходные данные\"),1)","v":5},"В соответствии с п. 7.2.3",{"$f":"F6","v":5}]
["1.5           ","Номинальный вторичный ток стороны НН трансформатора, А",null,"7.3",null,{"$f":"'Исходные данные'!L17/(3^0.5*'Исходные данные'!L21*'Исходные данные'!Q37)","v":8.7477313513579684},"-","-"]
["1.6           ","Номинальный ток диапазона измерений токов стороны НН, А",null,"-","-",{"$f":"IF(F7>1,IF(F7<=20,5,\"Ошибка: ток вне диапазона 1-20. Проверьте исходные данные\"),1)","v":5},"В соответствии с п. 7.2.3",{"$f":"F8","v":5}]
["1.7           ","Проверка входов измерения токов ВН","-","7.4",null,{"$f":"2*'Исходные данные'!L55/'Исходные данные'!Q33","v":23.794},{"$f":"IF(F4*100>=F9,\"Условие выполняется\",\"Условие НЕ выполняется\")","v":"Условие выполняется"},"-"]
["1.8           ","Проверка входов измерения токов СН","-","7.5",null,{"$f":"2*'Исходные данные'!L59*'Исходные данные'!L19/('Исходные данные'!Q35*'Исходные данные'!L20)","v":39.347922077922078},{"$f":"IF(F6*100>=F10,\"Условие выполняется\",\"Условие НЕ выполняется\")","v":"Условие выполняется"},"-"]
["1.9           ","Проверка входов измерения токов НН","-","7.6",null,{"$f":"2*'Исходные данные'!L63*'Исходные данные'!L19/('Исходные данные'!Q37*'Исходные данные'!L21)","v":83.279166666666669},{"$f":"IF(F8*100>=F11,\"Условие выполняется\",\"Условие НЕ выполняется\")","v":"Условие выполняется"},"-"]
["2.     Дифференциальная токовая защита (ДТО и ДЗТ)"]
["2.1           ","Номинальный ток обмотки ВН трансформатора, А",null,"8.3",null,{"$f":"'Исходные данные'!L15/(3^0.5*'Исходные данные'!L19)","v":200.817484935522},"-","-"]
["2.2           ","Максимальный ток небаланса в режиме внешнего КЗ, о.е.",null,"8.2",null,{"$f":"(J14*J15+MAX('Исходные данные'!L27:L28)*'Исходные данные'!L26+'Расчет уставок'!J16)/100*MAX('Исходные данные'!L59,'Исходные данные'!L63)/F13","v":3.0187683119059279},"-","-",null,2.5]
[null,null,null,null,null,null,null,null,null,10]
[null,null,null,null,null,null,null,null,null,5]
["2.3           ","Уставка срабатывания ДТО",null,"8.1",null,{"$f":"F14*J17","v":3.9243988054777064},"-","-",null,1.3]
[null,"по условию отстройки от тока небаланса, о.е."]
["2.4           ","Уставка срабатывания ДТО",null,"-","-",6,"В соответствии с п. 8.2.4","-"]
[null,"по условию отстройки от БТН, о.е."]
["2.5           ","Выбранное значение уставки срабатывания ДТО, о.е.",null,"-","-","-","максимальное значение из п.п. 2.4 и 2.5",{"$f":"MAX(F17:F20)","v":6}]
["2.6           ","Уставка ток начала торможения первого участка ДЗТ, о.е.",null,"-","-","-","В соответствии с п. 8.3.2",1]
["2.7           ","Уставка ток начала торможения второго участка ДЗТ, о.е.",null,"-","-",{"$f":"IF(CELL(\"содержимое\",'Исходные данные'!N12)=\"Маслонаполненный\",2,IF(CELL(\"содержимое\",'Исходные данные'!N12)=\"Сухой\",1.6,\"Ошибка: неверно задан вид трансформатора\"))","v":2},"В соответствии с п. 8.3.2",{"$f":"F23","v":2}]
["2.8           ","Ток небаланса, соответствующий току начала торможения первого участка, о.е.",null,"8.5",null,{"$f":"(J24*J25+MAX('Исходные данные'!L27:L28)*'Исходные данные'!L26+'Расчет уставок'!J26)/100*'Расчет уставок'!H22","v":0.31019999999999998},"-","-",null,1]
[null,null,null,null,null,null,null,null,null,10]
[null,null,null,null,null,null,null,null,null,5]
["2.9           ","Уставка начального тока срабатывания ДЗТ, о.е.",null,"8.4",null,{"$f":"ROUNDUP(J27*F24,2)","v":0.41000000000000003},"-",{"$f":"F27","v":0.41000000000000003},null,1.3]
["2.10        ","Ток небаланса, соответствующий току начала торможения второго участка, о.е.",null,"8.8",null,{"$f":"(J28*J29+MAX('Исходные данные'!L27:L28)*'Исходные данные'!L26+'Расчет уставок'!J30)/100*'Расчет уставок'!H23","v":0.72039999999999993},"-","-",null,1.5]
[null,null,null,null,null,null,null,null,null,10]
[null,null,null,null,null,null,null,null,null,5]
["2.11        ","Ток срабатывания ДЗТ при токе торможения, равном току начала торможения второго участка, о.е.",null,"8.7",null,{"$f":"J31*F28","v":0.93651999999999991},"-","-",null,1.3]
["2.12        ","Уставка коэффициента торможения первого участка ДЗТ",null,"8.6",null,{"$f":"ROUNDUP((F31-F27)/(H23-H22),2)","v":0.53},"-",{"$f":"F32","v":0.53}]
["2.13        ","Ток торможения, соответствующий максимальному току внешнего КЗ, о.е.",null,"8.10",null,{"$f":"MAX('Исходные данные'!L59,'Исходные данные'!L63)/'Расчет уставок'!F13-'Расчет уставок'!F14/2","v":5.0503036143771718},"-","-"]
["2.14        ","Уставка коэффициента торможения второго участка ДЗТ",null,"8.9",null,{"$f":"ROUNDUP((F17-F31)/(F33-H23),2)","v":0.98},"-",{"$f":"F34","v":0.98}]
["2.15        ","Уставка задержки срабатывания ДЗТ, с",null,"-","-","-","В соответствии с п. 8.3.7",0]
["2.16        ","Уставка блокирования ДЗТ по второй гармонике, о.е.",null,"-","-","-","В соответствии с п. 8.3.8",0.15]
["2.17        ","Уставка максимальной длительности перекрестного блокирования по 2 гармонике, с",null,"-","-","-","В соответствии с п. 8.3.9",2]
["2.18        ","Относительное значение минимального тока КЗ на выводах трансформатора, о.е.",null,"8.15",null,{"$f":"(3^0.5*MIN('Исходные данные'!L60,'Исходные данные'!L64)/(2*'Расчет уставок'!F13))","v":3.0730874999999997},"-","-"]
["2.19        ","Уставка срабатывания ДЗТ при минимальном токе КЗ на выводах трансформатора, о.е.",null,"8.14",null,{"$f":"IF(F38<=2*H22,H27,IF(F38<=2*H23,(F38/2-H22)*H32+H27,(F38/2-H23)*H34+F31))","v":0.69436818749999996},"-","-"]
["2.20        ","Коэффициент чувствительности ДЗТ",null,"8.16",null,{"$f":"F38/F39","v":4.4257319896297815},{"$f":"IF(F40<2,\"Низкая чувствительность\",\"Чувствительность в норме\")","v":"Чувствительность в норме"},"-"]
["2.21        ","Уставка тока срабатывания сигнализации небаланса, о.е.",null,"8.18",null,{"$f":"ROUNDUP(F24*J41,2)","v":0.33},"-",{"$f":"F41","v":0.33},null,1.05]
["2.22        ","Уставка задержки срабатывания сигнализации небаланса, с",null,"-","-","-","В соответствии с п. 8.4.3",10]
["3.     Токовая отсечка стороны ВН (ТО ВН)"]
["3.1           ","Уставка тока срабатывания ТО ВН по условию отстройки от токов КЗ на сторонах СН и НН, А",null,"(9.1",null,{"$f":"J44*MAX('Исходные данные'!L59,'Исходные данные'!L63)","v":1712.49},"-","-",null,1.3]
["3.2           ","Уставка тока срабатывания ТО ВН по условию отстройки от БТН, А",null,"(9.2",null,{"$f":"J45*F13","v":1204.9049096131321},"-","-",null,6]
["3.3           ","Выбранное значение уставки тока срабатывания ТО ВН, А",null,"-","-",{"$f":"MAX(F44:F45)","v":1712.49},"максимальное значение из п.п. 3.1 и 3.2",{"$f":"ROUNDUP(F46/'Исходные данные'!Q33,2)","v":8.57}]
["3.4           ","Коэффициент чувствительности ТО ВН",null,"(9.3",null,{"$f":"(3^0.5*'Исходные данные'!L56)/(2*'Расчет уставок'!F46)","v":1.1021975997221496},"Проверку чувствительности следует выполнять в случае неиспользования ДЗТ","-"]
["3.5           ","Уставка задержки срабатывания ТО ВН, с",null,"-","-","-","В соответствии с п. 9.2.1",0]
["4.     Максимальная токовая защита стороны НН (МТЗ НН)"]
["4.1           ","Номинальный ток стороны НН, приведенный к стороне ВН, А",null,"10.1",null,{"$f":"'Исходные данные'!L17/(3^0.5*'Исходные данные'!L21*'Исходные данные'!L24)","v":200.817484935522},"-","-"]
["4.2           ","Уставка тока срабатывания МТЗ НН по условию отстройки от режима самозапуска, А",null,"10.2",null,{"$f":"J51*J52*J54*F50/J53","v":1775.6493404825101},"-","-",null,1.2]
[null,null,null,null,null,null,null,null,null,{"$f":"'Исходные данные'!G43","v":5}]
[null,null,null,null,null,null,null,null,null,0.95]
[null,null,null,null,null,null,null,null,null,{"$f":"'Исходные данные'!L42","v":1.4}]
["4.3           ","Уставка тока срабатывания МТЗ НН по условию согласования с МТЗ предыдущего элемента, А",null,"10.3",null,{"$f":"IF(ISNUMBER('Исходные данные'!L77),J55*('Исходные данные'!L77+'Исходные данные'!L48*'Расчет уставок'!F50),\"-\")","v":325.12946340035194},"Согласование с уставкой МТЗ на СВ НН","-",null,1.1000000000000001]
["4.4           ","Коэффициент чувствительности МТЗ НН к КЗ на шинах НН",null,"10.4",null,{"$f":"(3^0.5*'Исходные данные'!L64)/(2*MAX(F51,F55))","v":0.34755156250000002},{"$f":"IF(F56<1.5,\"кч не удовлетворяет требованиям ПУЭ. Следует использовать пуск по напряжению\",\"кч удовлетворяет требованиям ПУЭ\")","v":"кч не удовлетворяет требованиям ПУЭ. Следует использовать пуск по напряжению"},"-"]
["4.5           ","Коэффициент чувствительности МТЗ НН к КЗ в конце зоны резервирования",null,"10.4",null,{"$f":"(3^0.5*'Исходные данные'!L70)/(2*MAX(F51,F55))","v":0.29751116071428574},{"$f":"IF(F57<1.2,\"кч не удовлетворяет требованиям ПУЭ. Следует использовать пуск по напряжению\",\"кч удовлетворяет требованиям ПУЭ\")","v":"кч не удовлетворяет требованиям ПУЭ. Следует использовать пуск по напряжению"},"-"]
["4.6           ","Пересчет уставки тока срабатывания МТЗ НН по условию отстройки от режима длительно допустимой перегрузки (без учета самозапуска), А",null,"10.2",null,{"$f":"(J51*J54*F50)/J53","v":355.12986809650204},"Значение уставки, пересчитанное без учета режима самозапуска","-"]
["4.7           ","Коэффициент чувствительности МТЗ НН к КЗ на шинах НН",null,"10.4",null,{"$f":"(3^0.5*'Исходные данные'!L64)/(2*MAX(F58,F55))","v":1.7377578124999999},{"$f":"IF(F59<1.5,\"кч не удовлетворяет требованиям ПУЭ\",\"кч удовлетворяет требованиям ПУЭ\")","v":"кч удовлетворяет требованиям ПУЭ"},"-"]
["4.8           ","Коэффициент чувствительности МТЗ НН к КЗ в конце зоны резервирования",null,"10.4",null,{"$f":"(3^0.5*'Исходные данные'!L70)/(2*MAX(F58,F55))","v":1.4875558035714285},{"$f":"IF(F60<1.2,\"кч не удовлетворяет требованиям ПУЭ\",\"кч удовлетворяет требованиям ПУЭ\")","v":"кч удовлетворяет требованиям ПУЭ"},"-"]
["4.9           ","Выбранное значение уставки МТЗ НН, А",null,"-","-",{"$f":"IF(OR(F56<1.5,F57<1.2),MAX(F55,F58),MAX(F51,F55))","v":355.12986809650204},"максимальное значение из п.п. 4.6 и 4.3",{"$f":"ROUNDUP(F61/'Исходные данные'!Q37*'Исходные данные'!L19/'Исходные данные'!L21,2)","v":15.47}]
["4.10        ","Уставка задержки срабатывания МТЗ НН на отключение ВВ НН, с",null,"-",null,{"$f":"'Исходные данные'!L78+'Расчет уставок'!J62","v":2.2999999999999998},"Значение ступени селективности принято равным 0,3 с",{"$f":"ROUNDUP(F62,2)","v":2.2999999999999998},null,0.3]
["4.11        ","Уставка задержки отключения трансформатора от МТЗ НН, с",null,"-",null,{"$f":"J62","v":0.3},"Значение ступени селективности принято равным 0,3 с",{"$f":"ROUNDUP(F63,2)","v":0.3}]
["5.     Максимальная токовая защита стороны СН (МТЗ СН)"]
["5.1           ","Номинальный ток стороны СН, приведенный к стороне ВН, А",null,"11.1",null,{"$f":"'Исходные данные'!L16/(3^0.5*'Исходные данные'!L20*'Исходные данные'!L23)","v":200.81748493552203},"-","-"]
["5.2           ","Уставка тока срабатывания МТЗ СН по условию отстройки от режима самозапуска, А",null,"11.2",null,{"$f":"(J66*J67*J69*F65)/J68","v":1775.6493404825105},"-","-",null,1.2]
[null,null,null,null,null,null,null,null,null,{"$f":"'Исходные данные'!G43","v":5}]
[null,null,null,null,null,null,null,null,null,0.95]
[null,null,null,null,null,null,null,null,null,{"$f":"'Исходные данные'!L42","v":1.4}]
["5.3           ","Уставка тока срабатывания МТЗ СН по условию согласования с МТЗ предыдущего элемента, А",null,"11.3",null,{"$f":"IF(ISNUMBER('Исходные данные'!L74),J70*('Исходные данные'!L74+'Исходные данные'!L44*F65),\"-\")","v":384.41946340035202},"Согласование с уставкой МТЗ на СВ СН","-",null,1.1000000000000001]
["5.4           ","Коэффициент чувствительности МТЗ СН к КЗ на шинах СН",null,"11.4",null,{"$f":"(3^0.5*'Исходные данные'!L60)/(2*MAX('Расчет уставок'!F66,'Расчет уставок'!F70))","v":0.48894252232142849},{"$f":"IF(F71<1.5,\"кч не удовлетворяет требованиям ПУЭ. Следует использовать пуск по напряжению\",\"кч удовлетворяет требованиям ПУЭ\")","v":"кч не удовлетворяет требованиям ПУЭ. Следует использовать пуск по напряжению"},"-"]
["5.5           ","Коэффициент чувствительности МТЗ СН к КЗ в конце зоны резервирования",null,"11.4",null,{"$f":"(3^0.5*'Исходные данные'!L67)/(2*MAX('Расчет уставок'!F66,'Расчет уставок'!F70))","v":0.36725558035714279},{"$f":"IF(F72<1.2,\"кч не удовлетворяет требованиям ПУЭ. Следует использовать пуск по напряжению\",\"кч удовлетворяет требованиям ПУЭ\")","v":"кч не удовлетворяет требованиям ПУЭ. Следует использовать пуск по напряжению"},"-"]
["5.6           ","Пересчет уставки тока срабатывания МТЗ СН по условию отстройки от режима длительно допустимой перегрузки (без учета самозапуска), А",null,"11.2",null,{"$f":"(J66*J69*F65)/J68","v":355.12986809650209},"Значение уставки, пересчитанное без учета режима самозапуска","-"]
["5.7           ","Коэффициент чувствительности МТЗ СН к КЗ на шинах СН",null,"11.4",null,{"$f":"(3^0.5*'Исходные данные'!L60)/(2*MAX('Расчет уставок'!F70,'Расчет уставок'!F73))","v":2.258445656248488},{"$f":"IF(F74<1.5,\"кч не удовлетворяет требованиям ПУЭ\",\"кч удовлетворяет требованиям ПУЭ\")","v":"кч удовлетворяет требованиям ПУЭ"},"-"]
["5.8           ","Коэффициент чувствительности МТЗ СН к КЗ в конце зоны резервирования",null,"11.4",null,{"$f":"(3^0.5*'Исходные данные'!L67)/(2*MAX('Расчет уставок'!F70,'Расчет уставок'!F73))","v":1.6963686575113333},{"$f":"IF(F75<1.2,\"кч не удовлетворяет требованиям ПУЭ\",\"кч удовлетворяет требованиям ПУЭ\")","v":"кч удовлетворяет требованиям ПУЭ"},"-"]
["5.9           ","Выбранное значение уставки МТЗ СН, А",null,"-","-",{"$f":"IF(OR(F71<1.5,F72<1.2),MAX(F73,F70),MAX(F66,F70))","v":384.41946340035202},"максимальное значение из п.п. 5.6 и 5.3",{"$f":"ROUNDUP(F76/'Исходные данные'!Q35*'Исходные данные'!L19/'Исходные данные'!L20,2)","v":5.75}]
["5.10        ","Уставка задержки срабатывания МТЗ СН на отключение ВВ СН, с",null,"-",null,{"$f":"'Исходные данные'!L75+'Расчет уставок'!J77","v":2.2999999999999998},"Значение ступени селективности принято равным 0,3 с",{"$f":"ROUNDUP(F77,2)","v":2.2999999999999998},null,0.3]
["5.11        ","Уставка задержки отключения трансформатора от МТЗ СН, с",null,"-",null,{"$f":"J77","v":0.3},"Значение ступени селективности принято равным 0,3 с",{"$f":"ROUNDUP(F78,2)","v":0.3}]
["6.     Максимальная токовая защита стороны ВН (МТЗ ВН)"]
["6.1           ","Уставка тока срабатывания МТЗ ВН по условию отстройки от режима самозапуска, А",null,"12.1",null,{"$f":"(J80*J81*J83*F13)/J82","v":1775.6493404825101},"-","-",null,1.2]
[null,null,null,null,null,null,null,null,null,{"$f":"'Исходные данные'!G43","v":5}]
[null,null,null,null,null,null,null,null,null,0.95]
[null,null,null,null,null,null,null,null,null,{"$f":"'Исходные данные'!L42","v":1.4}]
["6.2           ","Уставка тока срабатывания МТЗ ВН по условию согласования с МТЗ предыдущего элемента, А",null,"12.2",null,{"$f":"J84*MAX(F76,F61)","v":422.86140974038727},"Согласование с уставкой МТЗ НН","-",null,1.1000000000000001]
["6.3           ","Коэффициент чувствительности МТЗ ВН к КЗ на шинах НН",null,"12.3",null,{"$f":"J85*MIN('Исходные данные'!L60,'Исходные данные'!L64)/MAX('Расчет уставок'!F80,'Расчет уставок'!F84)","v":0.40131797633330019},{"$f":"IF(F85<'Исходные данные'!G47,\"кч не удовлетворяет требованиям ПУЭ. Следует использовать пуск по напряжению\",\"кч удовлетворяет требованиям ПУЭ\")","v":"кч не удовлетворяет требованиям ПУЭ. Следует использовать пуск по напряжению"},"-",null,{"$f":"'Исходные данные'!J62","v":1}]
["6.4           ","Пересчет уставки тока срабатывания МТЗ ВН по условию отстройки от режима длительно допустимой перегрузки (без учета самозапуска), А",null,"12.1",null,{"$f":"(J80*J83*F13)/J82","v":355.12986809650204},"Значение уставки, пересчитанное без учета режима самозапуска","-"]
["6.5           ","Коэффициент чувствительности МТЗ ВН к минимальному из токов КЗ на шинах СН и НН",null,"12.3",null,{"$f":"J85*MIN('Исходные данные'!L64,'Исходные данные'!L60)/MAX(F84,F86)","v":1.6851856981640763},{"$f":"IF(F87<'Исходные данные'!G47,\"кч не удовлетворяет требованиям ПУЭ\",\"кч удовлетворяет требованиям ПУЭ\")","v":"кч удовлетворяет требованиям ПУЭ"},"-"]
["6.6           ","Выбранное значение уставки МТЗ ВН, А",null,"-","-",{"$f":"IF(F85<'Исходные данные'!G47,MAX(F84,F86),MAX(F84,F80))","v":422.86140974038727},"максимальное значение из п.п. 6.2 и 6.4",{"$f":"ROUNDUP(F88/'Исходные данные'!Q33,2)","v":2.1199999999999997}]
["6.7           ","Уставка задержки срабатывания МТЗ ВН, с",null,"-",null,{"$f":"MAX(H62,H77)","v":2.2999999999999998},"Значение ступени селективности принято равным 0,3 с",{"$f":"ROUNDUP(F89+J89,2)","v":2.6},null,0.3]
["7.     Защита от перегрузки (ЗП)"]
["7.1           ","Уставка тока срабатывания защиты от перегрузки, А",null,"13.1",null,{"$f":"J91*F13/J92","v":221.95616756031382},"-",{"$f":"ROUNDUP(F91/'Исходные данные'!Q33,2)","v":1.1100000000000001},null,1.05]
[null,null,null,null,null,null,null,null,null,0.95]
["7.2           ","Уставка задержки срабатывания ЗП, с",null,"-","-","-","В соответствии с п. 13.2.2",9]
["8.     Газовая защита (ГЗ)"]
["8.1           ","Уставка задержки срабатывания первой ступени ГЗ, с",null,"-","-",0,"В соответствии с п. 14.2.1",{"$f":"F95","v":0}]
["8.2           ","Уставка задержки срабатывания второй ступени ГЗ, с",null,"-","-",0,"В соответствии с п. 14.2.1",{"$f":"F96","v":0}]
["8.3           ","Уставка задержки срабатывания ГЗ РПН, с",null,"-","-",0,"В соответствии с п. 14.2.1",0]
["8.4           ","Уставка задержки срабатывания контроля изоляции цепей ГЗ, с",null,"-","-",0,"В соответствии с п. 14.2.2",0]
["8.5           ","Уставка задержки срабатывания сигнализации отсутствия питания цепей ГЗ, с",null,"-","-",10,"Отстроена с запасом от времени действия защит и АВР цепей питания",10]
["9.     УРОВ"]
["9.1           ","Уставка токового органа УРОВ стороны ВН, А",null,"-","-",{"$f":"IF(F4=5,0.5,0.1)","v":0.5},"В соответствии с п. 15.2.1",{"$f":"F101","v":0.5}]
["9.2           ","Уставка задержки срабатывания УРОВ стороны ВН, с",null,"16.1",null,{"$f":"IF(J102+J103+J104<0.2,0.2,J102+J103+J104)","v":0.2},"В соответствии с п. 15.2.1",{"$f":"ROUNDUP(MAX(0.2,F102),2)","v":0.2},null,4.4999999999999998E-2]
[null,null,null,null,null,null,null,null,null,0.02]
[null,null,null,null,null,null,null,null,null,0.1]
["9.3           ","Уставка токового органа УРОВ стороны СН, А",null,"-","-",{"$f":"IF(F6=5,0.5,0.1)","v":0.5},"В соответствии с п. 15.2.1",{"$f":"F105","v":0.5}]
["9.4           ","Уставка задержки срабатывания УРОВ стороны СН, с",null,"16.1",null,{"$f":"IF(J106+J107+J108<0.2,0.2,J106+J107+J108)","v":0.2},"В соответствии с п. 15.2.1",{"$f":"ROUNDUP(MAX(0.2,F106),2)","v":0.2},null,4.4999999999999998E-2]
[null,null,null,null,null,null,null,null,null,0.02]
[null,null,null,null,null,null,null,null,null,0.1]

{"sheet":"Результаты расчета","index":2,"n_rows":44,"n_cols":13,"rows_kept":44,"cut":false,"hidden":false,"merged":[[4,0,4,2],[33,0,33,2],[39,0,39,2],[30,0,30,2],[27,0,27,2],[16,0,16,2],[19,0,19,2],[23,0,23,2]]}
["Уставка","Обозначение","Значение для ввода в устройство"]
["Номинальный ток диапазона измерений токов стороны ВН, А",null,{"$f":"'Расчет уставок'!$H$4","v":5}]
["Номинальный ток диапазона измерений токов стороны СН, А",null,{"$f":"'Расчет уставок'!$H$6","v":5}]
["Номинальный ток диапазона измерений токов стороны НН, А",null,{"$f":"'Расчет уставок'!$H$8","v":5}]
["ДТО и ДЗТ"]
["Ток срабатывания ДТО, о.е.",null,{"$f":"'Расчет уставок'!H21","v":6}]
["Ток начала торможения первого участка ДЗТ, о.е.",null,{"$f":"'Расчет уставок'!H22","v":1}]
["Ток начала торможения второго участка ДЗТ, о.е.",null,{"$f":"'Расчет уставок'!H23","v":2}]
["Начальный ток срабатывания ДЗТ, о.е.",null,{"$f":"'Расчет уставок'!H27","v":0.41000000000000003}]
["Коэффициент торможения первого участка ДЗТ",null,{"$f":"'Расчет уставок'!H32","v":0.53},null,null,null,null,"ДЗТ",null,"ДЗТ",null,"Небаланс"]
["Коэффициент торможения второго участка ДЗТ",null,{"$f":"'Расчет уставок'!H34","v":0.98},null,null,null,null,0,{"$f":"C9","v":0.41000000000000003},0,{"$f":"C6","v":6},{"$f":"J11","v":0},{"$f":"C15","v":0.33}]
["Задержка срабатывания ДЗТ, с",null,{"$f":"'Расчет уставок'!H35","v":0},null,null,null,null,{"$f":"C8","v":2},{"$f":"(C9+(C8-C7)*C10)","v":0.94000000000000006}]
["Уставка блокирования ДЗТ по второй гармонике, о.е.",null,{"$f":"'Расчет уставок'!H36","v":0.15},null,null,null,null,{"$f":"'Расчет уставок'!F33","v":5.0503036143771718},{"$f":"C6","v":6}]
["Максимальная длительность перекрестного блокирования по 2 гармонике, с",null,{"$f":"'Расчет уставок'!H37","v":2}]
["Ток срабатывания сигнализации небаланса, о.е.",null,{"$f":"'Расчет уставок'!$H$41","v":0.33}]
["Задержка срабатывания сигнализации небаланса, с",null,{"$f":"'Расчет уставок'!$H$42","v":10}]
["ТО ВН"]
["Ток срабатывания ТО ВН, А",null,{"$f":"'Расчет уставок'!$H$46","v":8.57}]
["Задержка срабатывания ТО ВН, с",null,{"$f":"'Расчет уставок'!$H$48","v":0}]
["МТЗ НН"]
["Ток срабатывания МТЗ НН, А",null,{"$f":"'Расчет уставок'!H61","v":15.47}]
["Задержка срабатывания МТЗ НН на отключение ВВ НН, с",null,{"$f":"'Расчет уставок'!H62","v":2.2999999999999998}]
["Задержка отключения трансформатора от МТЗ НН, с",null,{"$f":"'Расчет уставок'!H63","v":0.3}]
["МТЗ СН"]
["Ток срабатывания МТЗ СН, А",null,{"$f":"'Расчет уставок'!H76","v":5.75}]
["Задержка срабатывания МТЗ НС на отключение ВВ СН, с",null,{"$f":"'Расчет уставок'!H77","v":2.2999999999999998}]
["Задержка отключения трансформатора от МТЗ СН, с",null,{"$f":"'Расчет уставок'!H78","v":0.3}]
["МТЗ ВН"]
["Ток срабатывания МТЗ ВН, А",null,{"$f":"'Расчет уставок'!H88","v":2.1199999999999997}]
["Задержка срабатывания МТЗ ВН, с",null,{"$f":"'Расчет уставок'!H89","v":2.6}]
["ЗП"]
["Ток срабатывания защиты от перегрузки, А",null,{"$f":"'Расчет уставок'!H91","v":1.1100000000000001}]
["Задержка срабатывания ЗП, с",null,{"$f":"'Расчет уставок'!H93","v":9}]
["ГЗ"]
["Задержка срабатывания первой ступени ГЗ, с",null,{"$f":"'Расчет уставок'!H95","v":0}]
["Задержка срабатывания второй ступени ГЗ, с",null,{"$f":"'Расчет уставок'!H96","v":0}]
["Задержка срабатывания ГЗ РПН, с",null,{"$f":"'Расчет уставок'!H97","v":0}]
["Задержка срабатывания контроля изоляции цепей ГЗ, с",null,{"$f":"'Расчет уставок'!H98","v":0}]
["Задержка срабатывания сигнализации отсутствия питания цепей ГЗ, с",null,{"$f":"'Расчет уставок'!H99","v":10}]
["УРОВ"]
["Уставка токового органа УРОВ СН, А",null,{"$f":"'Расчет уставок'!H101","v":0.5}]
["Задержка срабатывания УРОВ СН, с",null,{"$f":"'Расчет уставок'!H102","v":0.2}]
["Уставка токового органа УРОВ НН, А",null,{"$f":"'Расчет уставок'!H105","v":0.5}]
["Задержка срабатывания УРОВ НН, с",null,{"$f":"'Расчет уставок'!H106","v":0.2}]